[Event "Titled Tuesday Blitz July 18 Early 2023"]
[White "Volovich, Vasily"]
[Black "Michalczak, Thomas"]
[WhiteFideId "34169676"]
[BlackFideId "4622634"]
[WhiteElo "2755"]
[BlackElo "2516"]
[Result "1-0"]
[Round "4"]
[TimeControl "180+2"]
[Date "2023.07.18"]
[WhiteClock "0:00:41"]
[BlackClock "0:00:00"]
[Board "104"]

1. e4 {[%clk 0:03:00]}  e5 {[%clk 0:02:57]} 2. Nf3 {[%clk 0:03:01]}  Nc6 {[%clk 0:02:57]} 3. d4 {[%clk 0:03:01]}  exd4 {[%clk 0:02:56]} 4. Bc4 {[%clk 0:03:02]}  Nf6 {[%clk 0:02:56]} 5. O-O {[%clk 0:03:03]}  Nxe4 {[%clk 0:02:55]} 6. Re1 {[%clk 0:03:03]}  d5 {[%clk 0:02:55]} 7. Bxd5 {[%clk 0:03:04]}  Qxd5 {[%clk 0:02:55]} 8. Nc3 {[%clk 0:03:05]}  Qh5 {[%clk 0:02:55]} 9. Nxe4 {[%clk 0:03:05]}  Be6 {[%clk 0:02:54]} 10. Bg5 {[%clk 0:03:06]}  Bb4 {[%clk 0:02:54]} 11. c3 {[%clk 0:03:03]}  dxc3 {[%clk 0:02:54]} 12. bxc3 {[%clk 0:03:03]}  Ba5 {[%clk 0:02:53]} 13. Rb1 {[%clk 0:02:48]}  Bb6 {[%clk 0:02:18]} 14. c4 {[%clk 0:02:40]}  h6 {[%clk 0:01:56]} 15. Bf6 {[%clk 0:02:33]}  O-O {[%clk 0:01:56]} 16. Rb5 {[%clk 0:02:30]}  Qg6 {[%clk 0:01:52]} 17. Ba1 {[%clk 0:01:11]}  Bxc4 {[%clk 0:01:50]} 18. Nh4 {[%clk 0:01:05]}  Qh7 {[%clk 0:01:44]} 19. Rh5 {[%clk 0:01:02]}  Rad8 {[%clk 0:01:28]} 20. Qg4 {[%clk 0:00:58]}  f5 {[%clk 0:01:28]} 21. Nxf5 {[%clk 0:00:56]}  Rxf5 {[%clk 0:00:56]} 22. Rxf5 {[%clk 0:00:52]}  Kh8 {[%clk 0:00:20]} 23. Nf6 {[%clk 0:00:51]}  Be2 {[%clk 0:00:02]} 24. Qxe2 {[%clk 0:00:41]}  Qxf5 {[%clk 0:00:00]} 25. Qe8+ {[%clk 0:00:41]} 1-0


[Site "https://www.chess.com"]

[Event "Titled Tuesday Blitz July 18 Early 2023"]
[White "Remizov, Yaroslav"]
[Black "MateoReyes"]
[WhiteFideId "34134015"]
[WhiteElo "2754"]
[BlackElo "2509"]
[Result "1-0"]
[Round "4"]
[TimeControl "180+2"]
[Date "2023.07.18"]
[WhiteClock "0:01:24"]
[BlackClock "0:00:53"]
[Board "105"]

1. e4 {[%clk 0:03:00]}  c5 {[%clk 0:02:59]} 2. Nc3 {[%clk 0:03:00]}  Nc6 {[%clk 0:02:58]} 3. Bb5 {[%clk 0:03:00]}  Nd4 {[%clk 0:02:57]} 4. Bc4 {[%clk 0:03:01]}  e6 {[%clk 0:02:56]} 5. Nf3 {[%clk 0:03:01]}  d6 {[%clk 0:02:53]} 6. O-O {[%clk 0:03:01]}  Nf6 {[%clk 0:02:52]} 7. d3 {[%clk 0:03:01]}  Be7 {[%clk 0:02:52]} 8. Nxd4 {[%clk 0:03:00]}  cxd4 {[%clk 0:02:52]} 9. Ne2 {[%clk 0:03:01]}  e5 {[%clk 0:02:52]} 10. Kh1 {[%clk 0:02:55]}  Be6 {[%clk 0:02:51]} 11. Bxe6 {[%clk 0:02:51]}  fxe6 {[%clk 0:02:51]} 12. c3 {[%clk 0:02:52]}  dxc3 {[%clk 0:02:50]} 13. bxc3 {[%clk 0:02:53]}  O-O {[%clk 0:02:49]} 14. Qb3 {[%clk 0:02:53]}  Qc8 {[%clk 0:02:49]} 15. Ba3 {[%clk 0:02:52]}  Kh8 {[%clk 0:02:46]} 16. f3 {[%clk 0:02:52]}  Qd7 {[%clk 0:02:42]} 17. d4 {[%clk 0:02:51]}  exd4 {[%clk 0:02:36]} 18. cxd4 {[%clk 0:02:52]}  d5 {[%clk 0:02:32]} 19. e5 {[%clk 0:02:49]}  Ng8 {[%clk 0:02:22]} 20. Bc1 {[%clk 0:02:47]}  Rac8 {[%clk 0:02:17]} 21. Be3 {[%clk 0:02:43]}  Rc6 {[%clk 0:02:06]} 22. Rab1 {[%clk 0:02:41]}  Rb6 {[%clk 0:02:03]} 23. Qd3 {[%clk 0:02:40]}  Ra6 {[%clk 0:01:55]} 24. Rb2 {[%clk 0:02:16]}  Ra3 {[%clk 0:01:53]} 25. Qd2 {[%clk 0:02:14]}  b6 {[%clk 0:01:49]} 26. f4 {[%clk 0:02:08]}  Nh6 {[%clk 0:01:48]} 27. h3 {[%clk 0:02:07]}  Nf5 {[%clk 0:01:48]} 28. Bf2 {[%clk 0:02:04]}  Bh4 {[%clk 0:01:38]} 29. Bxh4 {[%clk 0:01:43]}  Nxh4 {[%clk 0:01:37]} 30. Qb4 {[%clk 0:01:43]}  Rxh3+ {[%clk 0:01:26]} 31. gxh3 {[%clk 0:01:43]}  Qf7 {[%clk 0:01:26]} 32. Ng3 {[%clk 0:01:37]}  Kg8 {[%clk 0:01:24]} 33. Kh2 {[%clk 0:01:35]}  Qg6 {[%clk 0:01:24]} 34. Qd2 {[%clk 0:01:32]}  h5 {[%clk 0:01:10]} 35. Qe2 {[%clk 0:01:32]}  Nf5 {[%clk 0:01:05]} 36. Nxf5 {[%clk 0:01:32]}  Rxf5 {[%clk 0:01:04]} 37. Qg2 {[%clk 0:01:28]}  Qh7 {[%clk 0:01:04]} 38. Rc2 {[%clk 0:01:27]}  Rf8 {[%clk 0:01:00]} 39. Rc7 {[%clk 0:01:25]}  Kh8 {[%clk 0:00:58]} 40. Rg1 {[%clk 0:01:24]}  Rg8 {[%clk 0:00:53]} 41. Qg6 {[%clk 0:01:24]} 1-0


[Site "https://www.chess.com"]

[Event "Titled Tuesday Blitz July 18 Early 2023"]
[White "Iskusnyh, Sergei"]
[Black "Wartiovaara, Oliver"]
[WhiteFideId "4120027"]
[BlackFideId "513024"]
[WhiteElo "2646"]
[BlackElo "2485"]
[Result "1-0"]
[Round "4"]
[TimeControl "180+2"]
[Date "2023.07.18"]
[WhiteClock "0:01:56"]
[BlackClock "0:02:17"]
[Board "106"]

1. d4 {[%clk 0:03:00]}  d5 {[%clk 0:02:53]} 2. c4 {[%clk 0:03:00]}  e6 {[%clk 0:02:53]} 3. Nf3 {[%clk 0:02:59]}  c6 {[%clk 0:02:53]} 4. e3 {[%clk 0:02:58]}  f5 {[%clk 0:02:53]} 5. Bd3 {[%clk 0:02:57]}  Bd6 {[%clk 0:02:51]} 6. O-O {[%clk 0:02:56]}  Nh6 {[%clk 0:02:50]} 7. b3 {[%clk 0:02:56]}  Qe7 {[%clk 0:02:48]} 8. a4 {[%clk 0:02:50]}  a5 {[%clk 0:02:43]} 9. Ba3 {[%clk 0:02:49]}  Bb4 {[%clk 0:02:43]} 10. Bxb4 {[%clk 0:02:46]}  axb4 {[%clk 0:02:44]} 11. Nbd2 {[%clk 0:02:43]}  Nd7 {[%clk 0:02:44]} 12. Qc2 {[%clk 0:02:33]}  Nf6 {[%clk 0:02:44]} 13. Ne5 {[%clk 0:02:32]}  Ne4 {[%clk 0:02:43]} 14. f3 {[%clk 0:02:29]}  Nxd2 {[%clk 0:02:39]} 15. Qxd2 {[%clk 0:02:28]}  O-O {[%clk 0:02:40]} 16. c5 {[%clk 0:02:20]}  Nf7 {[%clk 0:02:36]} 17. Nxf7 {[%clk 0:02:17]}  Rxf7 {[%clk 0:02:36]} 18. Qxb4 {[%clk 0:02:18]}  e5 {[%clk 0:02:35]} 19. Qc3 {[%clk 0:02:17]}  e4 {[%clk 0:02:32]} 20. fxe4 {[%clk 0:02:17]}  fxe4 {[%clk 0:02:32]} 21. Rxf7 {[%clk 0:02:12]}  Qxf7 {[%clk 0:02:33]} 22. Rf1 {[%clk 0:02:12]}  Qh5 {[%clk 0:02:30]} 23. Bc2 {[%clk 0:02:08]}  Qe2 {[%clk 0:02:27]} 24. Bd1 {[%clk 0:01:56]}  Qa2 {[%clk 0:02:17]} 25. Bc2 {[%clk 0:01:56]} 1-0


[Site "https://www.chess.com"]

[Event "Titled Tuesday Blitz July 18 Early 2023"]
[White "Tregubov, Pavel V."]
[Black "Cheer_Down"]
[WhiteFideId "4115341"]
[WhiteElo "2627"]
[BlackElo "2449"]
[Result "0-1"]
[Round "4"]
[TimeControl "180+2"]
[Date "2023.07.18"]
[WhiteClock "0:00:00"]
[BlackClock "0:00:13"]
[Board "108"]

1. e4 {[%clk 0:03:00]}  c5 {[%clk 0:01:48]} 2. Nf3 {[%clk 0:02:59]}  d6 {[%clk 0:01:48]} 3. Bb5+ {[%clk 0:02:59]}  Nd7 {[%clk 0:01:47]} 4. Ba4 {[%clk 0:02:58]}  Nf6 {[%clk 0:01:46]} 5. O-O {[%clk 0:02:57]}  a6 {[%clk 0:01:46]} 6. c4 {[%clk 0:02:57]}  e6 {[%clk 0:01:45]} 7. Nc3 {[%clk 0:02:56]}  Be7 {[%clk 0:01:45]} 8. d4 {[%clk 0:02:41]}  cxd4 {[%clk 0:01:45]} 9. Qxd4 {[%clk 0:02:40]}  O-O {[%clk 0:01:45]} 10. Bg5 {[%clk 0:02:36]}  Qc7 {[%clk 0:01:36]} 11. Rfd1 {[%clk 0:02:33]}  Ne5 {[%clk 0:01:32]} 12. Nxe5 {[%clk 0:02:26]}  dxe5 {[%clk 0:01:33]} 13. Qd3 {[%clk 0:02:24]}  b6 {[%clk 0:01:22]} 14. Rac1 {[%clk 0:02:15]}  Bb7 {[%clk 0:01:20]} 15. Bxf6 {[%clk 0:01:57]}  Bxf6 {[%clk 0:01:20]} 16. Qd7 {[%clk 0:01:55]}  Qb8 {[%clk 0:01:20]} 17. Bc6 {[%clk 0:01:44]}  Ra7 {[%clk 0:01:18]} 18. Bxb7 {[%clk 0:01:43]}  Rxb7 {[%clk 0:01:18]} 19. Qd6 {[%clk 0:01:39]}  Qc8 {[%clk 0:00:57]} 20. b3 {[%clk 0:01:37]}  Rd8 {[%clk 0:00:52]} 21. Qa3 {[%clk 0:01:32]}  Rbd7 {[%clk 0:00:46]} 22. Rxd7 {[%clk 0:01:14]}  Rxd7 {[%clk 0:00:46]} 23. Rd1 {[%clk 0:01:12]}  Rd4 {[%clk 0:00:45]} 24. Re1 {[%clk 0:00:54]}  h5 {[%clk 0:00:40]} 25. h3 {[%clk 0:00:34]}  b5 {[%clk 0:00:37]} 26. Qc1 {[%clk 0:00:16]}  bxc4 {[%clk 0:00:33]} 27. Na4 {[%clk 0:00:14]}  Qc6 {[%clk 0:00:23]} 28. Qc2 {[%clk 0:00:05]}  Qd7 {[%clk 0:00:16]} 29. bxc4 {[%clk 0:00:02]}  Rd2 {[%clk 0:00:16]} 30. Qb3 {[%clk 0:00:00]}  Qd4 {[%clk 0:00:13]} 0-1


[Site "https://www.chess.com"]

[Event "Titled Tuesday Blitz July 18 Early 2023"]
[White "Zacurdajev, Dmitry"]
[Black "Vaibhav Jayant Raut"]
[WhiteFideId "4196309"]
[BlackFideId "5089034"]
[WhiteElo "2427"]
[BlackElo "2601"]
[Result "0-1"]
[Round "4"]
[TimeControl "180+2"]
[Date "2023.07.18"]
[WhiteClock "0:00:00"]
[BlackClock "0:01:07"]
[Board "109"]

1. d4 {[%clk 0:03:00]}  Nf6 {[%clk 0:02:53]} 2. c4 {[%clk 0:03:00]}  e6 {[%clk 0:02:53]} 3. Nc3 {[%clk 0:03:01]}  Bb4 {[%clk 0:02:53]} 4. Qc2 {[%clk 0:03:00]}  O-O {[%clk 0:02:53]} 5. a3 {[%clk 0:03:00]}  Bxc3+ {[%clk 0:02:53]} 6. Qxc3 {[%clk 0:03:01]}  b6 {[%clk 0:02:53]} 7. f3 {[%clk 0:02:59]}  d5 {[%clk 0:02:53]} 8. Bg5 {[%clk 0:02:58]}  Nbd7 {[%clk 0:02:49]} 9. e3 {[%clk 0:02:58]}  Bb7 {[%clk 0:02:49]} 10. Nh3 {[%clk 0:02:56]}  Rc8 {[%clk 0:02:48]} 11. Be2 {[%clk 0:02:44]}  h6 {[%clk 0:02:46]} 12. Bh4 {[%clk 0:02:43]}  c5 {[%clk 0:02:46]} 13. dxc5 {[%clk 0:02:42]}  Rxc5 {[%clk 0:02:46]} 14. Rd1 {[%clk 0:02:15]}  Ne4 {[%clk 0:02:40]} 15. Bxd8 {[%clk 0:02:08]}  Nxc3 {[%clk 0:02:39]} 16. bxc3 {[%clk 0:02:00]}  Rxd8 {[%clk 0:02:38]} 17. cxd5 {[%clk 0:01:51]}  Bxd5 {[%clk 0:02:37]} 18. Nf4 {[%clk 0:01:36]}  Bb3 {[%clk 0:02:35]} 19. Rd6 {[%clk 0:01:19]}  Rxc3 {[%clk 0:02:23]} 20. Kf2 {[%clk 0:01:18]}  Kf8 {[%clk 0:02:08]} 21. Rb1 {[%clk 0:00:40]}  Ke7 {[%clk 0:02:03]} 22. Rd2 {[%clk 0:00:34]}  Ba4 {[%clk 0:01:52]} 23. Rd3 {[%clk 0:00:21]}  Rxd3 {[%clk 0:01:48]} 24. Nxd3 {[%clk 0:00:22]}  Bc2 {[%clk 0:01:43]} 25. Rc1 {[%clk 0:00:22]}  Bxd3 {[%clk 0:01:42]} 26. Bxd3 {[%clk 0:00:23]}  Nc5 {[%clk 0:01:42]} 27. Bb5 {[%clk 0:00:16]}  Rd2+ {[%clk 0:01:41]} 28. Kg3 {[%clk 0:00:16]}  Ra2 {[%clk 0:01:35]} 29. Rc3 {[%clk 0:00:16]}  h5 {[%clk 0:01:33]} 30. h4 {[%clk 0:00:16]}  f6 {[%clk 0:01:32]} 31. Bc4 {[%clk 0:00:14]}  Ra1 {[%clk 0:01:31]} 32. e4 {[%clk 0:00:10]}  g5 {[%clk 0:01:27]} 33. hxg5 {[%clk 0:00:10]}  fxg5 {[%clk 0:01:28]} 34. Re3 {[%clk 0:00:06]}  Kf6 {[%clk 0:01:18]} 35. e5+ {[%clk 0:00:04]}  Kf5 {[%clk 0:01:19]} 36. Bb5 {[%clk 0:00:01]}  h4+ {[%clk 0:01:14]} 37. Kh2 {[%clk 0:00:02]}  Kf4 {[%clk 0:01:07]} 38. Re2 {[%clk 0:00:00]}  Rxa3 {[%clk 0:01:07]} 0-1


[Site "https://www.chess.com"]

[Event "Titled Tuesday Blitz July 18 Early 2023"]
[White "Tarasova, Viktoriya"]
[Black "Petrosian, Karlen"]
[WhiteFideId "4175840"]
[BlackFideId "4176146"]
[WhiteElo "2378"]
[BlackElo "2597"]
[Result "0-1"]
[Round "4"]
[TimeControl "180+2"]
[Date "2023.07.18"]
[WhiteClock "0:00:07"]
[BlackClock "0:00:24"]
[Board "112"]

1. d4 {[%clk 0:03:00]}  Nf6 {[%clk 0:02:59]} 2. c4 {[%clk 0:03:00]}  d6 {[%clk 0:03:00]} 3. Nf3 {[%clk 0:02:59]}  g6 {[%clk 0:02:59]} 4. Nc3 {[%clk 0:02:59]}  Bf5 {[%clk 0:03:00]} 5. g3 {[%clk 0:02:59]}  Bg7 {[%clk 0:02:59]} 6. Bg2 {[%clk 0:03:00]}  Ne4 {[%clk 0:02:59]} 7. O-O {[%clk 0:02:57]}  Nxc3 {[%clk 0:02:59]} 8. bxc3 {[%clk 0:02:57]}  Be4 {[%clk 0:03:00]} 9. Bh3 {[%clk 0:02:38]}  O-O {[%clk 0:02:57]} 10. Nd2 {[%clk 0:02:38]}  Bc6 {[%clk 0:02:57]} 11. e4 {[%clk 0:02:35]}  b6 {[%clk 0:02:55]} 12. f4 {[%clk 0:02:34]}  Bb7 {[%clk 0:02:53]} 13. f5 {[%clk 0:02:24]}  c5 {[%clk 0:02:52]} 14. Bb2 {[%clk 0:02:16]}  Nc6 {[%clk 0:02:49]} 15. Nf3 {[%clk 0:02:07]}  Na5 {[%clk 0:02:49]} 16. Qe2 {[%clk 0:02:07]}  cxd4 {[%clk 0:02:38]} 17. cxd4 {[%clk 0:02:05]}  Qc8 {[%clk 0:02:28]} 18. Rac1 {[%clk 0:02:00]}  Qc6 {[%clk 0:02:27]} 19. Nd2 {[%clk 0:01:39]}  Qa4 {[%clk 0:02:21]} 20. a3 {[%clk 0:01:24]}  b5 {[%clk 0:01:53]} 21. fxg6 {[%clk 0:00:46]}  hxg6 {[%clk 0:01:54]} 22. Bd7 {[%clk 0:00:46]}  Bc6 {[%clk 0:01:47]} 23. Bxc6 {[%clk 0:00:37]}  Nxc6 {[%clk 0:01:48]} 24. Nf3 {[%clk 0:00:37]}  Rab8 {[%clk 0:01:37]} 25. cxb5 {[%clk 0:00:14]}  Rxb5 {[%clk 0:01:11]} 26. Rxc6 {[%clk 0:00:13]}  Rxb2 {[%clk 0:01:12]} 27. Qxb2 {[%clk 0:00:12]}  Qxc6 {[%clk 0:01:12]} 28. Qe2 {[%clk 0:00:10]}  Qc3 {[%clk 0:01:11]} 29. e5 {[%clk 0:00:06]}  dxe5 {[%clk 0:00:49]} 30. dxe5 {[%clk 0:00:05]}  e6 {[%clk 0:00:48]} 31. Kh1 {[%clk 0:00:05]}  Qxa3 {[%clk 0:00:47]} 32. Ng5 {[%clk 0:00:05]}  Qc5 {[%clk 0:00:35]} 33. Re1 {[%clk 0:00:05]}  Qd5+ {[%clk 0:00:31]} 34. Kg1 {[%clk 0:00:05]}  Bh6 {[%clk 0:00:29]} 35. h4 {[%clk 0:00:05]}  Bxg5 {[%clk 0:00:29]} 36. hxg5 {[%clk 0:00:06]}  Kg7 {[%clk 0:00:29]} 37. Qf2 {[%clk 0:00:06]}  Qd8 {[%clk 0:00:28]} 38. Qxa7 {[%clk 0:00:04]}  Qxg5 {[%clk 0:00:27]} 39. Qf2 {[%clk 0:00:05]}  Rh8 {[%clk 0:00:22]} 40. Qf3 {[%clk 0:00:05]}  Qf5 {[%clk 0:00:18]} 41. Qxf5 {[%clk 0:00:04]}  gxf5 {[%clk 0:00:19]} 42. Kf2 {[%clk 0:00:05]}  Kg6 {[%clk 0:00:19]} 43. Kf3 {[%clk 0:00:05]}  Kg5 {[%clk 0:00:20]} 44. Ra1 {[%clk 0:00:06]}  Rc8 {[%clk 0:00:19]} 45. Ra7 {[%clk 0:00:06]}  Rc3+ {[%clk 0:00:20]} 46. Kf2 {[%clk 0:00:06]}  Kg6 {[%clk 0:00:21]} 47. Rb7 {[%clk 0:00:06]}  Rc5 {[%clk 0:00:21]} 48. Kf3 {[%clk 0:00:05]}  Rxe5 {[%clk 0:00:21]} 49. Kf4 {[%clk 0:00:05]}  Re4+ {[%clk 0:00:21]} 50. Kf3 {[%clk 0:00:06]}  Rg4 {[%clk 0:00:22]} 51. Kg2 {[%clk 0:00:06]}  Kf6 {[%clk 0:00:23]} 52. Kf3 {[%clk 0:00:06]}  Rg6 {[%clk 0:00:23]} 53. Kf2 {[%clk 0:00:07]}  Rg4 {[%clk 0:00:23]} 54. Kf3 {[%clk 0:00:07]}  Re4 {[%clk 0:00:24]} 55. Kf2 {[%clk 0:00:08]}  Rd4 {[%clk 0:00:24]} 56. Kf3 {[%clk 0:00:08]}  Rd6 {[%clk 0:00:25]} 57. Kf2 {[%clk 0:00:08]}  e5 {[%clk 0:00:25]} 58. Kf3 {[%clk 0:00:09]}  Re6 {[%clk 0:00:26]} 59. Kf2 {[%clk 0:00:09]}  Kg6 {[%clk 0:00:26]} 60. Kf3 {[%clk 0:00:09]}  f6 {[%clk 0:00:27]} 61. Kf2 {[%clk 0:00:10]}  Rd6 {[%clk 0:00:27]} 62. Rb8 {[%clk 0:00:09]}  Rd2+ {[%clk 0:00:26]} 63. Kf3 {[%clk 0:00:10]}  Ra2 {[%clk 0:00:25]} 64. Rg8+ {[%clk 0:00:09]}  Kf7 {[%clk 0:00:26]} 65. Rb8 {[%clk 0:00:09]}  Ra3+ {[%clk 0:00:26]} 66. Kf2 {[%clk 0:00:10]}  Ra4 {[%clk 0:00:27]} 67. Kf3 {[%clk 0:00:10]}  f4 {[%clk 0:00:27]} 68. g4 {[%clk 0:00:10]}  Kg7 {[%clk 0:00:24]} 69. Rb7+ {[%clk 0:00:09]}  Kg6 {[%clk 0:00:25]} 70. Rb8 {[%clk 0:00:10]}  Ra3+ {[%clk 0:00:25]} 71. Ke4 {[%clk 0:00:10]}  Re3+ {[%clk 0:00:25]} 72. Kd5 {[%clk 0:00:10]}  f3 {[%clk 0:00:24]} 73. Rg8+ {[%clk 0:00:09]}  Kf7 {[%clk 0:00:23]} 74. Rh8 {[%clk 0:00:09]}  f2 {[%clk 0:00:24]} 75. Rh1 {[%clk 0:00:07]}  Re1 {[%clk 0:00:24]} 0-1


[Site "https://www.chess.com"]

[Event "Titled Tuesday Blitz July 18 Early 2023"]
[White "Shapiro, Daniel"]
[Black "Lana Rodriguez, David"]
[WhiteFideId "2001780"]
[BlackFideId "2270803"]
[WhiteElo "2321"]
[BlackElo "2582"]
[Result "1-0"]
[Round "4"]
[TimeControl "180+2"]
[Date "2023.07.18"]
[WhiteClock "0:00:11"]
[BlackClock "0:01:32"]
[Board "114"]

1. d4 {[%clk 0:03:00]}  Nf6 {[%clk 0:02:59]} 2. c4 {[%clk 0:03:01]}  e6 {[%clk 0:02:59]} 3. g3 {[%clk 0:03:00]}  d5 {[%clk 0:02:58]} 4. Nf3 {[%clk 0:03:00]}  Be7 {[%clk 0:02:53]} 5. Bg2 {[%clk 0:02:59]}  dxc4 {[%clk 0:02:53]} 6. O-O {[%clk 0:02:56]}  Bd7 {[%clk 0:02:52]} 7. Ne5 {[%clk 0:02:50]}  Bc6 {[%clk 0:02:52]} 8. Nxc6 {[%clk 0:02:45]}  Nxc6 {[%clk 0:02:53]} 9. e3 {[%clk 0:02:43]}  O-O {[%clk 0:02:51]} 10. Qe2 {[%clk 0:02:43]}  Na5 {[%clk 0:02:47]} 11. Nd2 {[%clk 0:02:41]}  c6 {[%clk 0:02:42]} 12. Nxc4 {[%clk 0:02:40]}  Nxc4 {[%clk 0:02:42]} 13. Qxc4 {[%clk 0:02:41]}  Qb6 {[%clk 0:02:42]} 14. b3 {[%clk 0:02:34]}  Rfd8 {[%clk 0:02:37]} 15. Bb2 {[%clk 0:02:25]}  Qb4 {[%clk 0:02:34]} 16. Rac1 {[%clk 0:02:17]}  Qxc4 {[%clk 0:02:32]} 17. Rxc4 {[%clk 0:02:10]}  Nd5 {[%clk 0:02:31]} 18. Rd1 {[%clk 0:01:30]}  Rac8 {[%clk 0:02:30]} 19. e4 {[%clk 0:01:24]}  Nb4 {[%clk 0:02:11]} 20. a3 {[%clk 0:01:17]}  Na6 {[%clk 0:02:10]} 21. Rc2 {[%clk 0:01:04]}  Nc7 {[%clk 0:02:10]} 22. Bf1 {[%clk 0:01:01]}  Ne8 {[%clk 0:02:07]} 23. Rdc1 {[%clk 0:00:56]}  Nd6 {[%clk 0:02:06]} 24. f3 {[%clk 0:00:54]}  Nb5 {[%clk 0:02:05]} 25. Bxb5 {[%clk 0:00:48]}  Bg5 {[%clk 0:02:02]} 26. f4 {[%clk 0:00:47]}  Bf6 {[%clk 0:02:01]} 27. e5 {[%clk 0:00:43]}  Be7 {[%clk 0:02:01]} 28. Be2 {[%clk 0:00:42]}  Rd7 {[%clk 0:02:01]} 29. b4 {[%clk 0:00:41]}  Rcd8 {[%clk 0:02:02]} 30. Bf3 {[%clk 0:00:40]}  g6 {[%clk 0:02:02]} 31. g4 {[%clk 0:00:40]}  h6 {[%clk 0:02:02]} 32. f5 {[%clk 0:00:39]}  Bg5 {[%clk 0:02:02]} 33. Re1 {[%clk 0:00:35]}  gxf5 {[%clk 0:01:59]} 34. gxf5 {[%clk 0:00:34]}  exf5 {[%clk 0:02:00]} 35. Rg2 {[%clk 0:00:32]}  Kf8 {[%clk 0:02:00]} 36. Rf2 {[%clk 0:00:28]}  Bh4 {[%clk 0:02:00]} 37. Bh5 {[%clk 0:00:27]}  Bxf2+ {[%clk 0:01:52]} 38. Kxf2 {[%clk 0:00:28]}  Ke7 {[%clk 0:01:52]} 39. Rg1 {[%clk 0:00:27]}  b6 {[%clk 0:01:47]} 40. Rg7 {[%clk 0:00:26]}  Rf8 {[%clk 0:01:47]} 41. Rh7 {[%clk 0:00:25]}  c5 {[%clk 0:01:48]} 42. bxc5 {[%clk 0:00:24]}  bxc5 {[%clk 0:01:48]} 43. Ke3 {[%clk 0:00:25]}  cxd4+ {[%clk 0:01:47]} 44. Bxd4 {[%clk 0:00:24]}  f4+ {[%clk 0:01:42]} 45. Ke4 {[%clk 0:00:24]}  f3 {[%clk 0:01:43]} 46. Bc5+ {[%clk 0:00:24]}  Ke8 {[%clk 0:01:39]} 47. Bxf8 {[%clk 0:00:18]}  f2 {[%clk 0:01:40]} 48. Be2 {[%clk 0:00:17]}  Rd2 {[%clk 0:01:39]} 49. Ke3 {[%clk 0:00:14]}  Ra2 {[%clk 0:01:37]} 50. Rh8 {[%clk 0:00:12]}  f1=Q {[%clk 0:01:32]} 51. Bxf1 {[%clk 0:00:12]}  Rxh2 {[%clk 0:01:33]} 52. Bb5+ {[%clk 0:00:11]}  Kd8 {[%clk 0:01:32]} 53. Bd6# {[%clk 0:00:11]} 1-0


[Site "https://www.chess.com"]

[Event "Titled Tuesday Blitz July 18 Early 2023"]
[White "Goswami, Vedant"]
[Black "demon64fields"]
[WhiteFideId "5003725"]
[WhiteElo "2403"]
[BlackElo "2883"]
[Result "0-1"]
[Round "4"]
[TimeControl "180+2"]
[Date "2023.07.18"]
[WhiteClock "0:00:00"]
[BlackClock "0:00:20"]
[Board "117"]

1. e4 {[%clk 0:03:00]}  a6 {[%clk 0:02:59]} 2. Nf3 {[%clk 0:03:00]}  b5 {[%clk 0:02:59]} 3. d4 {[%clk 0:03:00]}  Bb7 {[%clk 0:02:59]} 4. Bd3 {[%clk 0:03:01]}  Nf6 {[%clk 0:02:58]} 5. Qe2 {[%clk 0:03:01]}  e6 {[%clk 0:02:58]} 6. O-O {[%clk 0:02:59]}  d5 {[%clk 0:02:58]} 7. e5 {[%clk 0:02:58]}  Nfd7 {[%clk 0:02:58]} 8. Ng5 {[%clk 0:02:56]}  c5 {[%clk 0:02:54]} 9. c3 {[%clk 0:02:55]}  Nc6 {[%clk 0:02:53]} 10. Qh5 {[%clk 0:02:40]}  Qe7 {[%clk 0:02:53]} 11. Be3 {[%clk 0:02:35]}  g6 {[%clk 0:02:50]} 12. Qg4 {[%clk 0:02:30]}  h6 {[%clk 0:02:48]} 13. Nf3 {[%clk 0:02:27]}  Bg7 {[%clk 0:02:48]} 14. Nbd2 {[%clk 0:02:25]}  O-O-O {[%clk 0:02:47]} 15. a4 {[%clk 0:02:17]}  c4 {[%clk 0:02:47]} 16. Bc2 {[%clk 0:02:17]}  b4 {[%clk 0:02:48]} 17. b3 {[%clk 0:02:01]}  bxc3 {[%clk 0:02:48]} 18. Nb1 {[%clk 0:02:01]}  cxb3 {[%clk 0:02:48]} 19. Bxb3 {[%clk 0:02:00]}  Na5 {[%clk 0:02:45]} 20. Bc2 {[%clk 0:01:46]}  Qb4 {[%clk 0:02:45]} 21. Na3 {[%clk 0:01:42]}  Bf8 {[%clk 0:02:25]} 22. Rfb1 {[%clk 0:01:41]}  Qxa3 {[%clk 0:02:25]} 23. Rxa3 {[%clk 0:01:40]}  Bxa3 {[%clk 0:02:26]} 24. Qf4 {[%clk 0:01:36]}  Rhf8 {[%clk 0:02:23]} 25. Bc1 {[%clk 0:01:29]}  Be7 {[%clk 0:02:12]} 26. Qe3 {[%clk 0:01:18]}  Nc4 {[%clk 0:02:08]} 27. Qxc3 {[%clk 0:01:17]}  Nb8 {[%clk 0:01:43]} 28. Bd3 {[%clk 0:01:13]}  Rd7 {[%clk 0:01:43]} 29. Bxh6 {[%clk 0:01:03]}  Rh8 {[%clk 0:01:41]} 30. Bg7 {[%clk 0:01:02]}  Re8 {[%clk 0:01:39]} 31. Bf6 {[%clk 0:01:01]}  Bf8 {[%clk 0:01:39]} 32. Bxc4 {[%clk 0:00:54]}  Rc7 {[%clk 0:01:38]} 33. Nd2 {[%clk 0:00:53]}  dxc4 {[%clk 0:01:33]} 34. f3 {[%clk 0:00:45]}  Bd5 {[%clk 0:01:26]} 35. h4 {[%clk 0:00:41]}  Nd7 {[%clk 0:01:21]} 36. Ne4 {[%clk 0:00:39]}  Rb7 {[%clk 0:01:12]} 37. Rxb7 {[%clk 0:00:37]}  Kxb7 {[%clk 0:01:13]} 38. Qb2+ {[%clk 0:00:36]}  Kc7 {[%clk 0:01:07]} 39. Qc3 {[%clk 0:00:35]}  Rb8 {[%clk 0:01:03]} 40. Qa5+ {[%clk 0:00:29]}  Rb6 {[%clk 0:01:04]} 41. Nc3 {[%clk 0:00:26]}  Kc6 {[%clk 0:01:01]} 42. Bd8 {[%clk 0:00:21]}  Bb4 {[%clk 0:00:59]} 43. Bxb6 {[%clk 0:00:18]}  Bxa5 {[%clk 0:00:58]} 44. Bxa5 {[%clk 0:00:18]}  Nb8 {[%clk 0:00:52]} 45. Kf2 {[%clk 0:00:18]}  Kd7 {[%clk 0:00:53]} 46. g4 {[%clk 0:00:18]}  Nc6 {[%clk 0:00:53]} 47. Bb6 {[%clk 0:00:17]}  Ke8 {[%clk 0:00:48]} 48. Bc5 {[%clk 0:00:17]}  f6 {[%clk 0:00:44]} 49. h5 {[%clk 0:00:15]}  gxh5 {[%clk 0:00:44]} 50. gxh5 {[%clk 0:00:15]}  fxe5 {[%clk 0:00:44]} 51. h6 {[%clk 0:00:15]}  Kf7 {[%clk 0:00:44]} 52. dxe5 {[%clk 0:00:12]}  Kg6 {[%clk 0:00:41]} 53. f4 {[%clk 0:00:11]}  Kxh6 {[%clk 0:00:40]} 54. Ke3 {[%clk 0:00:11]}  Kg6 {[%clk 0:00:41]} 55. Bd6 {[%clk 0:00:09]}  Kf5 {[%clk 0:00:41]} 56. Bc7 {[%clk 0:00:08]}  Nb4 {[%clk 0:00:34]} 57. Ne2 {[%clk 0:00:08]}  Kg4 {[%clk 0:00:21]} 58. Nd4 {[%clk 0:00:07]}  Nd3 {[%clk 0:00:20]} 59. Ba5 {[%clk 0:00:07]}  Nxf4 {[%clk 0:00:20]} 60. Bd2 {[%clk 0:00:00]}  Ng6 {[%clk 0:00:20]} 0-1


[Site "https://www.chess.com"]